[Event "*** Titled Tuesday Blitz"]
[Site "Chess.com"]
[Date "2021.03.02"]
[Round "3"]
[White "MarcoRiehle"]
[Black "FontVella8"]
[Result "0-1"]
[WhiteElo "2676"]
[BlackElo "2504"]
[TimeControl "180+1"]
[EndTime "10:30:01 PST"]
[Termination "FontVella8 won by resignation"]

1. e4 {[%clk 0:03:00.9]} 1... e6 {[%clk 0:03:00]} 2. c4 {[%clk 0:03:00.5]} 2...
c5 {[%clk 0:02:58.8]} 3. Nf3 {[%clk 0:02:58.9]} 3... Nc6 {[%clk 0:02:58.3]} 4.
Be2 {[%clk 0:02:58.8]} 4... g6 {[%clk 0:02:57.8]} 5. d4 {[%clk 0:02:46.2]} 5...
cxd4 {[%clk 0:02:56.7]} 6. Nxd4 {[%clk 0:02:47.1]} 6... a6 {[%clk 0:02:57]} 7.
O-O {[%clk 0:02:38.5]} 7... Bg7 {[%clk 0:02:56.9]} 8. Be3 {[%clk 0:02:38.8]}
8... Nge7 {[%clk 0:02:56.5]} 9. Nc3 {[%clk 0:02:38.4]} 9... O-O {[%clk
0:02:54.4]} 10. Re1 {[%clk 0:02:34]} 10... d5 {[%clk 0:02:44.3]} 11. exd5 {[%clk
0:02:23.1]} 11... exd5 {[%clk 0:02:44]} 12. Nxc6 {[%clk 0:02:23]} 12... bxc6
{[%clk 0:02:43.2]} 13. cxd5 {[%clk 0:02:21.1]} 13... cxd5 {[%clk 0:02:38.7]} 14.
Bd4 {[%clk 0:02:16.9]} 14... Be6 {[%clk 0:02:32.3]} 15. Bf3 {[%clk 0:02:08.1]}
15... Rc8 {[%clk 0:02:25.3]} 16. Bxg7 {[%clk 0:02:05.4]} 16... Kxg7 {[%clk
0:02:25.1]} 17. Qa4 {[%clk 0:02:03.3]} 17... Qb6 {[%clk 0:02:22.2]} 18. Qa3
{[%clk 0:01:55]} 18... Rc7 {[%clk 0:02:03.6]} 19. Rad1 {[%clk 0:01:32.8]} 19...
Rd8 {[%clk 0:02:03.1]} 20. Na4 {[%clk 0:01:26.1]} 20... Qd6 {[%clk 0:02:00.6]}
21. b4 {[%clk 0:01:15.2]} 21... d4 {[%clk 0:01:44.4]} 22. Nc5 {[%clk 0:01:12.9]}
22... Nf5 {[%clk 0:01:43.3]} 23. Qxa6 {[%clk 0:01:02.2]} 23... Qxa6 {[%clk
0:01:42.9]} 24. Nxa6 {[%clk 0:01:03.1]} 24... Rc2 {[%clk 0:01:21.2]} 25. a4
{[%clk 0:01:01.1]} 25... d3 {[%clk 0:01:20.9]} 26. Be4 {[%clk 0:01:00.9]} 26...
Rc3 {[%clk 0:01:15.4]} 27. Nc5 {[%clk 0:00:57.9]} 27... Bb3 {[%clk 0:01:13.8]}
28. Nxb3 {[%clk 0:00:47.7]} 28... Rxb3 {[%clk 0:01:14.7]} 29. b5 {[%clk
0:00:44]} 29... d2 {[%clk 0:01:06.5]} 30. Rf1 {[%clk 0:00:43.2]} 30... Nd4
{[%clk 0:00:49.7]} 31. Rxd2 {[%clk 0:00:34.2]} 31... Nf3+ {[%clk 0:00:49.1]} 32.
gxf3 {[%clk 0:00:34.4]} 32... Rxd2 {[%clk 0:00:50]} 33. Ra1 {[%clk 0:00:31.8]}
33... Rbb2 {[%clk 0:00:49.3]} 34. a5 {[%clk 0:00:22.6]} 34... Rxf2 {[%clk
0:00:49.3]} 35. f4 {[%clk 0:00:23.1]} 35... Rxf4 {[%clk 0:00:49.4]} 36. Bc6
{[%clk 0:00:23.1]} 36... Rg4+ {[%clk 0:00:46.8]} 37. Kh1 {[%clk 0:00:21.6]}
37... Rh4 {[%clk 0:00:14.9]} 38. b6 {[%clk 0:00:21.9]} 38... Rhxh2+ {[%clk
0:00:15.8]} 39. Kg1 {[%clk 0:00:22.1]} 39... Rhc2 {[%clk 0:00:13.4]} 40. a6
{[%clk 0:00:15.6]} 40... Rxc6 {[%clk 0:00:12.8]} 41. a7 {[%clk 0:00:16.1]} 41...
Rc8 {[%clk 0:00:11.8]} 42. a8=Q {[%clk 0:00:11.8]} 42... Rxa8 {[%clk 0:00:11.5]}
43. Rxa8 {[%clk 0:00:12.7]} 43... Rxb6 {[%clk 0:00:11.7]} 44. Kf2 {[%clk
0:00:13.6]} 44... h5 {[%clk 0:00:11.6]} 45. Kg3 {[%clk 0:00:14.2]} 45... f5
{[%clk 0:00:11.6]} 46. Ra3 {[%clk 0:00:14.6]} 46... Kf6 {[%clk 0:00:11.8]} 47.
Kh4 {[%clk 0:00:14.7]} 47... Rb4+ {[%clk 0:00:11.3]} 48. Kg3 {[%clk 0:00:15]}
48... Kg5 {[%clk 0:00:11.9]} 49. Kh3 {[%clk 0:00:15.3]} 49... h4 {[%clk
0:00:11.5]} 50. Re3 {[%clk 0:00:14.8]} 50... Kh5 {[%clk 0:00:11.6]} 51. Re8
{[%clk 0:00:14.1]} 51... Rb3+ {[%clk 0:00:11.4]} 52. Kg2 {[%clk 0:00:14.6]}
52... Kg4 {[%clk 0:00:11.7]} 53. Re2 {[%clk 0:00:14.3]} 53... g5 {[%clk
0:00:11.4]} 54. Kh2 {[%clk 0:00:14.7]} 54... f4 {[%clk 0:00:11.5]} 55. Rf2
{[%clk 0:00:15]} 55... h3 {[%clk 0:00:10.4]} 56. Ra2 {[%clk 0:00:13.3]} 56...
Rg3 {[%clk 0:00:08.1]} 57. Ra4 {[%clk 0:00:11.8]} 57... Kh4 {[%clk 0:00:06.5]}
58. Rb4 {[%clk 0:00:10.5]} 58... Rg2+ {[%clk 0:00:06.4]} 59. Kh1 {[%clk
0:00:11]} 59... Rd2 {[%clk 0:00:06.7]} 60. Rc4 {[%clk 0:00:09]} 60... Kg3 {[%clk
0:00:06.7]} 61. Rc3+ {[%clk 0:00:08.8]} 61... f3 {[%clk 0:00:06.8]} 62. Rc1
{[%clk 0:00:09.4]} 62... g4 {[%clk 0:00:05.9]} 63. Rg1+ {[%clk 0:00:09.5]} 63...
Kf4 {[%clk 0:00:05.9]} 64. Ra1 {[%clk 0:00:09.2]} 64... g3 {[%clk 0:00:06.3]}
65. Ra4+ {[%clk 0:00:09]} 65... Ke3 {[%clk 0:00:06]} 66. Ra3+ {[%clk 0:00:09.4]}
66... Ke2 {[%clk 0:00:05.3]} 67. Ra1 {[%clk 0:00:10.3]} 67... Rd1+ {[%clk
0:00:05.2]} 68. Rxd1 {[%clk 0:00:09.3]} 68... Kxd1 {[%clk 0:00:06.1]} 69. Kg1
{[%clk 0:00:10]} 69... Ke2 {[%clk 0:00:05.1]} 70. Kh1 {[%clk 0:00:10.2]} 70...
g2+ {[%clk 0:00:05.1]} 71. Kh2 {[%clk 0:00:10.8]} 71... Kf2 {[%clk 0:00:04.7]}
72. Kxh3 {[%clk 0:00:11]} 72... g1=Q {[%clk 0:00:04.9]} 73. Kh4 {[%clk
0:00:11.2]} 73... Ke3 {[%clk 0:00:05.3]} 0-1

[Event "*** Titled Tuesday Blitz"]
[Site "Chess.com"]
[Date "2021.03.02"]
[Round "3"]
[White "nrvisakh"]
[Black "johnathan113"]
[Result "0-1"]
[WhiteElo "2788"]
[BlackElo "2619"]
[TimeControl "180+1"]
[EndTime "10:30:02 PST"]
[Termination "johnathan113 won on time"]

1. d4 {[%clk 0:03:00.9]} 1... Nf6 {[%clk 0:02:58.7]} 2. Bf4 {[%clk 0:03:00.9]}
2... g6 {[%clk 0:02:58.5]} 3. Nc3 {[%clk 0:02:53.8]} 3... Bg7 {[%clk 0:02:58.5]}
4. Qd2 {[%clk 0:02:53.5]} 4... O-O {[%clk 0:02:58.1]} 5. Bh6 {[%clk 0:02:53.1]}
5... Bxh6 {[%clk 0:02:52.6]} 6. Qxh6 {[%clk 0:02:51.6]} 6... c5 {[%clk
0:02:53.5]} 7. d5 {[%clk 0:02:44.1]} 7... b5 {[%clk 0:02:50.2]} 8. Nxb5 {[%clk
0:01:42.7]} 8... Qb6 {[%clk 0:02:41]} 9. e4 {[%clk 0:00:59.8]} 9... a6 {[%clk
0:02:25]} 10. e5 {[%clk 0:01:00]} 10... Nxd5 {[%clk 0:02:25]} 11. Qd2 {[%clk
0:00:58.6]} 11... axb5 {[%clk 0:01:49.9]} 12. Qxd5 {[%clk 0:00:57]} 12... Bb7
{[%clk 0:01:45.3]} 13. Qd2 {[%clk 0:00:56.5]} 13... Nc6 {[%clk 0:01:44.9]} 14.
Nf3 {[%clk 0:00:56.5]} 14... Nb4 {[%clk 0:01:26.8]} 15. Be2 {[%clk 0:00:52.1]}
15... Be4 {[%clk 0:01:09.9]} 16. Bd1 {[%clk 0:00:40.3]} 16... Rxa2 {[%clk
0:01:03]} 17. Rxa2 {[%clk 0:00:39.7]} 17... Nxa2 {[%clk 0:01:03.9]} 18. O-O
{[%clk 0:00:35.9]} 18... Qb7 {[%clk 0:00:56.6]} 19. c3 {[%clk 0:00:29.6]} 19...
b4 {[%clk 0:00:57]} 20. Re1 {[%clk 0:00:29]} 20... Rb8 {[%clk 0:00:50.5]} 21. h4
{[%clk 0:00:26.1]} 21... Kg7 {[%clk 0:00:29]} 22. Ng5 {[%clk 0:00:24.9]} 22...
Bf5 {[%clk 0:00:18.8]} 23. c4 {[%clk 0:00:20.6]} 23... b3 {[%clk 0:00:14.7]} 24.
h5 {[%clk 0:00:18.6]} 24... h6 {[%clk 0:00:13.3]} 25. Nxf7 {[%clk 0:00:14.3]}
25... Kxf7 {[%clk 0:00:12.7]} 26. Qxh6 {[%clk 0:00:14.8]} 26... Rg8 {[%clk
0:00:12.6]} 27. Bf3 {[%clk 0:00:14.5]} 27... Qb4 {[%clk 0:00:10.6]} 28. Rd1
{[%clk 0:00:14.7]} 28... Ke8 {[%clk 0:00:04.6]} 29. Qh7 {[%clk 0:00:13.1]} 29...
Be6 {[%clk 0:00:03.3]} 30. Bd5 {[%clk 0:00:10.1]} 30... Qb6 {[%clk 0:00:01.9]}
31. hxg6 {[%clk 0:00:09.2]} 31... Bxd5 {[%clk 0:00:02.2]} 32. cxd5 {[%clk
0:00:08.6]} 32... Qxg6 {[%clk 0:00:02.8]} 33. Qh3 {[%clk 0:00:09.1]} 33... Qg7
{[%clk 0:00:02.7]} 34. Re1 {[%clk 0:00:08.7]} 34... Nb4 {[%clk 0:00:03.3]} 35.
d6 {[%clk 0:00:08.4]} 35... e6 {[%clk 0:00:03.5]} 36. Qf3 {[%clk 0:00:08.6]}
36... Nc6 {[%clk 0:00:03.9]} 37. g3 {[%clk 0:00:08.6]} 37... Nxe5 {[%clk
0:00:03.8]} 38. Qa8+ {[%clk 0:00:07.6]} 38... Kf7 {[%clk 0:00:03.9]} 39. Qe4
{[%clk 0:00:07.9]} 39... Nc6 {[%clk 0:00:03.6]} 40. Qf4+ {[%clk 0:00:06.1]}
40... Qf6 {[%clk 0:00:03.8]} 41. Qe4 {[%clk 0:00:05.5]} 41... Rg7 {[%clk
0:00:04.1]} 42. Kg2 {[%clk 0:00:05.7]} 42... Nd4 {[%clk 0:00:04.2]} 43. Rh1
{[%clk 0:00:05.5]} 43... Qf5 {[%clk 0:00:04.5]} 44. Qe3 {[%clk 0:00:05]} 44...
Qd5+ {[%clk 0:00:04.9]} 45. Kg1 {[%clk 0:00:05.2]} 45... Nf3+ {[%clk 0:00:04.7]}
46. Kf1 {[%clk 0:00:05.5]} 46... Ng5 {[%clk 0:00:02.5]} 47. Rh4 {[%clk
0:00:05.4]} 47... e5 {[%clk 0:00:02.1]} 48. Ra4 {[%clk 0:00:03]} 48... Qxd6
{[%clk 0:00:01.7]} 49. Rg4 {[%clk 0:00:01.9]} 49... Ne6 {[%clk 0:00:02.2]} 50.
Rxg7+ {[%clk 0:00:01.6]} 50... Nxg7 {[%clk 0:00:03.1]} 51. Kg2 {[%clk
0:00:02.5]} 51... Qf6 {[%clk 0:00:03.6]} 52. Qxb3+ {[%clk 0:00:02.4]} 52... Qe6
{[%clk 0:00:04]} 53. Qc2 {[%clk 0:00:03.3]} 53... d6 {[%clk 0:00:04.8]} 54. b4
{[%clk 0:00:01.7]} 54... Ne8 {[%clk 0:00:05.7]} 55. bxc5 {[%clk 0:00:01.5]}
55... Qd5+ {[%clk 0:00:06.4]} 56. Kg1 {[%clk 0:00:01.2]} 56... Qxc5 {[%clk
0:00:07.3]} 57. Qf5+ {[%clk 0:00:01.5]} 57... Nf6 {[%clk 0:00:07.5]} 58. Qg5
{[%clk 0:00:02.4]} 58... Qd5 {[%clk 0:00:07.3]} 59. Qf5 {[%clk 0:00:02.7]} 59...
Qe4 {[%clk 0:00:06.6]} 60. Qc8 {[%clk 0:00:02.7]} 60... d5 {[%clk 0:00:05.5]}
61. Qc7+ {[%clk 0:00:03.2]} 61... Kg6 {[%clk 0:00:06.1]} 62. Qb6 {[%clk
0:00:04.1]} 62... d4 {[%clk 0:00:06.1]} 63. Qb4 {[%clk 0:00:03.9]} 63... d3
{[%clk 0:00:05.7]} 64. Qd2 {[%clk 0:00:03.2]} 64... Qe2 {[%clk 0:00:04.7]} 0-1

[Event "*** Titled Tuesday Blitz"]
[Site "Chess.com"]
[Date "2021.03.02"]
[Round "3"]
[White "Iskusnyh"]
[Black "ParvizGasimov"]
[Result "1-0"]
[WhiteElo "2603"]
[BlackElo "2408"]
[TimeControl "180+1"]
[EndTime "10:30:05 PST"]
[Termination "Iskusnyh won on time"]

1. d4 {[%clk 0:03:00.9]} 1... Nf6 {[%clk 0:02:58]} 2. c4 {[%clk 0:03:00.8]} 2...
g6 {[%clk 0:02:58.4]} 3. g3 {[%clk 0:03:00.1]} 3... c6 {[%clk 0:02:58.1]} 4. Bg2
{[%clk 0:02:59.7]} 4... d5 {[%clk 0:02:58.7]} 5. e3 {[%clk 0:03:00]} 5... Bg7
{[%clk 0:02:55.2]} 6. Ne2 {[%clk 0:02:59.7]} 6... O-O {[%clk 0:02:55.6]} 7. O-O
{[%clk 0:02:59.3]} 7... Bf5 {[%clk 0:02:16.9]} 8. Nbc3 {[%clk 0:02:51.6]} 8...
Qd7 {[%clk 0:02:12.4]} 9. cxd5 {[%clk 0:02:10.9]} 9... cxd5 {[%clk 0:02:10]} 10.
Nf4 {[%clk 0:02:08.8]} 10... e6 {[%clk 0:02:02.9]} 11. h3 {[%clk 0:02:08.3]}
11... h5 {[%clk 0:01:58.2]} 12. b3 {[%clk 0:01:58.2]} 12... Rc8 {[%clk
0:01:52.8]} 13. Bb2 {[%clk 0:01:49.4]} 13... Nc6 {[%clk 0:01:50.5]} 14. Rc1
{[%clk 0:01:48.4]} 14... Bf8 {[%clk 0:01:32.9]} 15. Nd3 {[%clk 0:01:37.1]} 15...
b6 {[%clk 0:01:24.7]} 16. Ne5 {[%clk 0:01:34.1]} 16... Qe8 {[%clk 0:01:17.7]}
17. g4 {[%clk 0:00:58]} 17... hxg4 {[%clk 0:01:16.4]} 18. hxg4 {[%clk
0:00:57.7]} 18... Nxe5 {[%clk 0:01:13]} 19. gxf5 {[%clk 0:00:57.4]} 19... Neg4
{[%clk 0:00:59.8]} 20. fxg6 {[%clk 0:00:57.1]} 20... fxg6 {[%clk 0:00:59.5]} 21.
Bf3 {[%clk 0:00:54.9]} 21... Nh6 {[%clk 0:00:55.2]} 22. Kg2 {[%clk 0:00:33.6]}
22... Bd6 {[%clk 0:00:50.4]} 23. Rh1 {[%clk 0:00:32.3]} 23... Kg7 {[%clk
0:00:50.8]} 24. e4 {[%clk 0:00:31.2]} 24... dxe4 {[%clk 0:00:45.2]} 25. Nxe4
{[%clk 0:00:30.7]} 25... Nxe4 {[%clk 0:00:44.9]} 26. Bxe4 {[%clk 0:00:28.9]}
26... Rab8 {[%clk 0:00:38.3]} 27. d5+ {[%clk 0:00:26.1]} 27... e5 {[%clk
0:00:37.5]} 28. Qf3 {[%clk 0:00:20.2]} 28... Qf7 {[%clk 0:00:26.5]} 29. Qh3
{[%clk 0:00:16]} 29... Rh8 {[%clk 0:00:26]} 30. Qe6 {[%clk 0:00:15.4]} 30... Nf5
{[%clk 0:00:14.6]} 31. Qxf7+ {[%clk 0:00:12.6]} 31... Kxf7 {[%clk 0:00:15.5]}
32. Rc6 {[%clk 0:00:11.6]} 32... Ke7 {[%clk 0:00:12.8]} 33. f4 {[%clk
0:00:10.1]} 33... Rxh1 {[%clk 0:00:12.2]} 34. Kxh1 {[%clk 0:00:09.4]} 34... Ng3+
{[%clk 0:00:11.4]} 35. Kg2 {[%clk 0:00:08.8]} 35... Nxe4 {[%clk 0:00:11.6]} 36.
fxe5 {[%clk 0:00:09]} 36... Bc5 {[%clk 0:00:10.8]} 37. Rxg6 {[%clk 0:00:08.5]}
37... Rf8 {[%clk 0:00:07.8]} 38. d6+ {[%clk 0:00:07.3]} 38... Kd7 {[%clk
0:00:04.9]} 39. Rg7+ {[%clk 0:00:06.6]} 39... Kc6 {[%clk 0:00:05]} 40. Rc7+
{[%clk 0:00:05.8]} 40... Kd5 {[%clk 0:00:04.4]} 41. d7 {[%clk 0:00:05.5]} 41...
Be7 {[%clk 0:00:02.8]} 42. Kh3 {[%clk 0:00:01.6]} 42... Rf3+ {[%clk 0:00:02.1]}
43. Kg4 {[%clk 0:00:01.6]} 43... Rg3+ {[%clk 0:00:02]} 44. Kf5 {[%clk
0:00:01.5]} 44... Rg5+ {[%clk 0:00:02]} 45. Kf4 {[%clk 0:00:01.4]} 45... Rg2
{[%clk 0:00:02.6]} 46. d8=Q+ {[%clk 0:00:01.1]} 46... Bxd8 {[%clk 0:00:02]} 47.
Rd7+ {[%clk 0:00:01.6]} 47... Ke6 {[%clk 0:00:01.1]} 48. Rxd8 {[%clk 0:00:01.6]}
48... Rxb2 {[%clk 0:00:01.2]} 49. Kxe4 {[%clk 0:00:01.2]} 49... Rxa2 {[%clk
0:00:01.6]} 50. Rd6+ {[%clk 0:00:02]} 50... Ke7 {[%clk 0:00:01.7]} 51. Rh6
{[%clk 0:00:02.4]} 51... Ra3 {[%clk 0:00:02.1]} 52. Rh7+ {[%clk 0:00:02.7]}
52... Ke8 {[%clk 0:00:02.2]} 53. Rh6 {[%clk 0:00:03.3]} 53... Rxb3 {[%clk
0:00:02.3]} 54. Kd5 {[%clk 0:00:03.7]} 54... Rd3+ {[%clk 0:00:01.8]} 55. Ke6
{[%clk 0:00:04]} 55... Kd8 {[%clk 0:00:02.2]} 56. Rh7 {[%clk 0:00:04]} 56... a5
{[%clk 0:00:01.9]} 57. Rb7 {[%clk 0:00:04]} 57... a4 {[%clk 0:00:01.6]} 58. Rxb6
{[%clk 0:00:03.5]} 58... Kc7 {[%clk 0:00:01.6]} 59. Ra6 {[%clk 0:00:04.1]} 59...
a3 {[%clk 0:00:02.2]} 60. Kf7 {[%clk 0:00:04.1]} 60... Re3 {[%clk 0:00:01.8]}
61. e6 {[%clk 0:00:03.6]} 61... Kb7 {[%clk 0:00:02.5]} 62. Ra4 {[%clk
0:00:03.2]} 62... Kb6 {[%clk 0:00:02.8]} 63. e7 {[%clk 0:00:03.7]} 63... Kb5
{[%clk 0:00:01.2]} 64. Rxa3 {[%clk 0:00:03.7]} 64... Rxa3 {[%clk 0:00:01]} 65.
e8=Q+ {[%clk 0:00:03.9]} 1-0

[Event "*** Titled Tuesday Blitz"]
[Site "Chess.com"]
[Date "2021.03.02"]
[Round "3"]
[White "DenLaz"]
[Black "GianmarcoVaR"]
[Result "0-1"]
[WhiteElo "2825"]
[BlackElo "2630"]
[TimeControl "180+1"]
[EndTime "10:30:07 PST"]
[Termination "GianmarcoVaR won by resignation"]

1. d4 {[%clk 0:03:00.9]} 1... Nf6 {[%clk 0:03:00]} 2. c4 {[%clk 0:03:00.6]} 2...
e6 {[%clk 0:03:00.5]} 3. Nf3 {[%clk 0:02:59]} 3... d5 {[%clk 0:03:00]} 4. Nc3
{[%clk 0:02:58.9]} 4... a6 {[%clk 0:02:59.9]} 5. cxd5 {[%clk 0:02:54.2]} 5...
exd5 {[%clk 0:03:00.8]} 6. Bg5 {[%clk 0:02:54.5]} 6... Be6 {[%clk 0:03:00.9]} 7.
e3 {[%clk 0:02:55]} 7... Nbd7 {[%clk 0:03:00.9]} 8. Bd3 {[%clk 0:02:55.2]} 8...
Be7 {[%clk 0:02:57.3]} 9. h3 {[%clk 0:02:51.5]} 9... O-O {[%clk 0:02:56.9]} 10.
Qc2 {[%clk 0:02:47.3]} 10... h6 {[%clk 0:02:53]} 11. Bf4 {[%clk 0:02:46.6]}
11... Rc8 {[%clk 0:02:51.4]} 12. O-O {[%clk 0:02:45.3]} 12... c5 {[%clk
0:02:51.9]} 13. dxc5 {[%clk 0:02:40.9]} 13... Nxc5 {[%clk 0:02:52.2]} 14. Nd4
{[%clk 0:02:19.9]} 14... Nfe4 {[%clk 0:02:39]} 15. Nxe6 {[%clk 0:02:06]} 15...
fxe6 {[%clk 0:02:37.4]} 16. Nxe4 {[%clk 0:02:05.7]} 16... Nxe4 {[%clk
0:02:23.7]} 17. Qe2 {[%clk 0:02:02.2]} 17... Nc5 {[%clk 0:02:15]} 18. Bc2 {[%clk
0:01:48.9]} 18... Bd6 {[%clk 0:01:54.6]} 19. b4 {[%clk 0:01:47.5]} 19... Bxf4
{[%clk 0:01:11.7]} 20. exf4 {[%clk 0:01:45.7]} 20... Ne4 {[%clk 0:01:12]} 21.
Bxe4 {[%clk 0:01:36.5]} 21... dxe4 {[%clk 0:01:12.4]} 22. Qxe4 {[%clk
0:01:37.4]} 22... Qd5 {[%clk 0:01:12.7]} 23. Qxd5 {[%clk 0:01:28.8]} 23... exd5
{[%clk 0:01:12.7]} 24. g3 {[%clk 0:01:29.7]} 24... Rc4 {[%clk 0:01:06.5]} 25. a3
{[%clk 0:01:29.6]} 25... Rd8 {[%clk 0:01:01.1]} 26. Rfd1 {[%clk 0:01:28.4]}
26... Kf7 {[%clk 0:01:01.4]} 27. Ra2 {[%clk 0:01:28.5]} 27... Rc3 {[%clk
0:00:59.6]} 28. Kf1 {[%clk 0:01:20.5]} 28... d4 {[%clk 0:00:59.1]} 29. Ke2
{[%clk 0:01:11]} 29... Ke6 {[%clk 0:00:59.1]} 30. Kd2 {[%clk 0:01:09.1]} 30...
Kd5 {[%clk 0:00:59.2]} 31. Rc1 {[%clk 0:01:07.1]} 31... Rxc1 {[%clk 0:00:53.4]}
32. Kxc1 {[%clk 0:01:08]} 32... d3 {[%clk 0:00:54]} 33. b5 {[%clk 0:00:53.7]}
33... Re8 {[%clk 0:00:48.9]} 34. bxa6 {[%clk 0:00:52]} 34... bxa6 {[%clk
0:00:45.9]} 35. Kd1 {[%clk 0:00:33.9]} 35... Rb8 {[%clk 0:00:43.1]} 36. Kc1
{[%clk 0:00:25.5]} 36... Kd4 {[%clk 0:00:42.3]} 37. Rb2 {[%clk 0:00:24.8]} 37...
Re8 {[%clk 0:00:37.5]} 38. Kd1 {[%clk 0:00:24.3]} 38... Kc3 {[%clk 0:00:35.1]}
39. Rb7 {[%clk 0:00:22.3]} 39... Re2 {[%clk 0:00:35.4]} 40. Rc7+ {[%clk
0:00:21.7]} 40... Kb3 {[%clk 0:00:32.4]} 41. Rxg7 {[%clk 0:00:21.1]} 41... Rxf2
{[%clk 0:00:30.2]} 42. Rg6 {[%clk 0:00:18.3]} 42... a5 {[%clk 0:00:25.1]} 43.
Rxh6 {[%clk 0:00:18.6]} 43... a4 {[%clk 0:00:23.7]} 44. Rd6 {[%clk 0:00:18.2]}
44... Rf3 {[%clk 0:00:18.4]} 45. h4 {[%clk 0:00:15.1]} 45... Rxg3 {[%clk
0:00:17]} 46. Kd2 {[%clk 0:00:15]} 46... Kxa3 {[%clk 0:00:15]} 47. h5 {[%clk
0:00:10.8]} 47... Kb3 {[%clk 0:00:09.7]} 48. h6 {[%clk 0:00:10.2]} 48... Rg2+
{[%clk 0:00:04.5]} 49. Kxd3 {[%clk 0:00:09.1]} 49... Rh2 {[%clk 0:00:02.8]} 50.
Rb6+ {[%clk 0:00:09.2]} 50... Ka2 {[%clk 0:00:02]} 51. Ke4 {[%clk 0:00:08.1]}
51... a3 {[%clk 0:00:02.4]} 52. Kf5 {[%clk 0:00:08.6]} 52... Ka1 {[%clk
0:00:02.8]} 53. Kg6 {[%clk 0:00:05.9]} 53... a2 {[%clk 0:00:03.2]} 54. Ra6
{[%clk 0:00:04.1]} 54... Rg2+ {[%clk 0:00:02.6]} 55. Kh7 {[%clk 0:00:03.9]}
55... Kb1 {[%clk 0:00:02.4]} 56. Rxa2 {[%clk 0:00:03.6]} 56... Rxa2 {[%clk
0:00:01.8]} 57. f5 {[%clk 0:00:04.3]} 57... Rg2 {[%clk 0:00:01.9]} 58. f6 {[%clk
0:00:04.5]} 58... Kc2 {[%clk 0:00:01.9]} 59. f7 {[%clk 0:00:04.9]} 59... Rf2
{[%clk 0:00:02.3]} 60. Kg7 {[%clk 0:00:04.8]} 60... Rg2+ {[%clk 0:00:02.8]} 61.
Kf8 {[%clk 0:00:05.1]} 61... Rh2 {[%clk 0:00:03.2]} 62. Kg8 {[%clk 0:00:03.2]}
62... Rg2+ {[%clk 0:00:03.5]} 63. Kh7 {[%clk 0:00:03.8]} 63... Rf2 {[%clk
0:00:03.6]} 64. Kg6 {[%clk 0:00:04.4]} 64... Rg2+ {[%clk 0:00:03.7]} 65. Kf6
{[%clk 0:00:04.8]} 65... Rf2+ {[%clk 0:00:03.5]} 66. Ke6 {[%clk 0:00:04.2]}
66... Re2+ {[%clk 0:00:03.8]} 67. Kd6 {[%clk 0:00:04]} 67... Rd2+ {[%clk
0:00:03.9]} 68. Kc7 {[%clk 0:00:03.3]} 68... Rf2 {[%clk 0:00:03.9]} 69. h7
{[%clk 0:00:01.8]} 69... Rxf7+ {[%clk 0:00:04.3]} 70. Kd6 {[%clk 0:00:02.7]}
70... Rxh7 {[%clk 0:00:05.2]} 71. Ke6 {[%clk 0:00:03.6]} 71... Rh4 {[%clk
0:00:05.7]} 72. Kf6 {[%clk 0:00:04.5]} 72... Ra4 {[%clk 0:00:06.3]} 73. Kf5
{[%clk 0:00:05.4]} 73... Kd3 {[%clk 0:00:07.2]} 74. Kg5 {[%clk 0:00:06.3]} 74...
Ra5+ {[%clk 0:00:07.7]} 75. Kg6 {[%clk 0:00:07.2]} 75... Ke4 {[%clk 0:00:08.2]}
0-1